[Event "ISR-ch Youth 2019"]
[Site "Jerusalem"]
[Date "2019.04.14"]
[Round "5.2"]
[White "Lukin, Elisha"]
[Black "Zemach, Roee"]
[Result "0-1"]
[ECO "E46"]
[WhiteElo "2287"]
[BlackElo "2230"]
[Annotator "NA"]
[PlyCount "82"]
[EventDate "2019.04.11"]
[EventType "swiss"]
[EventCountry "ISR"]
[SourceTitle "playchess.com"]
[Source "ChessBase"]
[SourceQuality "1"]
[TimeControl "5400+30"]

1. d4 {[%emt 0:00:00]} Nf6 {[%emt 0:00:00]} 2. c4 {[%emt 0:00:07]} e6 {[%emt 0:00:03]} 3. Nc3 {[%emt 0:00:04]} Bb4 {[%emt 0:00:14]} 4. e3 {[%emt 0:00:06]} O-O {[%emt 0:00:24]} 5. Nge2 {[%emt 0:00:06]} c6 {[%emt 0:00:22]} 6. a3 {[%emt 0:01:41]} Ba5 {[%emt 0:00:07]} 7. g3 {[%emt 0:03:28]} d5 {[%emt 0:00:43]} 8. cxd5 {[%emt 0:03:34]} exd5 {[%emt 0:01:09]} 9. Bg2 {[%emt 0:00:06]} Bf5 {[%emt 0:02:43]} 10. Bd2 {[%emt 0:06:19]} Bc7 {[%emt 0:04:53]} 11. f3 {[%emt 0:01:28]} Re8 {[%emt 0:02:56]} 12. O-O {[%emt 0:00:08]} Nbd7 {[%emt 0:10:49]} 13. Nf4 {[%emt 0:05:54]} Nf8 {[%emt 0:03:22]} 14. Qb3 $15 {[%emt 0:08:49]} Rb8 {[%emt 0:12:20]} 15. g4 {[%emt 0:05:19]} Bg6 {[%emt 0:04:24]} 16. Nce2 {[%emt 0:00:41]} Ne6 {[%emt 0:01:48]} 17. Nxg6 {[%emt 0:06:34]} hxg6 {[%emt 0:00:29]} 18. Be1 {[%emt 0:00:58]} c5 {[%emt 0:01:52]} 19. Rd1 {[%emt 0:06:18]} Nxd4 {[%emt 0:08:01]} 20. Nxd4 {[%emt 0:07:11]} cxd4 {[%emt 0:00:09]} 21. Rxd4 {[%emt 0:02:15]} Bb6 {[%emt 0:09:48]} 22. Rd3 {[%emt 0:02:03]} Qe7 {[%emt 0:00:32]} 23. Bf2 {[%emt 0:00:34]} Rbd8 {[%emt 0:01:04]} 24. Re1 {[%emt 0:14:15]} Qe6 {[%emt 0:03:25]} 25. g5 {[%emt 0:03:40]} Nh5 {[%emt 0:03:26]} 26. Red1 {[%emt 0:01:45]} Qe7 {[%emt 0:03:54]} 27. h4 {[%emt 0:03:04]} d4 {[%emt 0:03:32]} 28. exd4 {[%emt 0:00:55]} Nf4 {[%emt 0:00:28]} 29. Re3 {[%emt 0:00:57]} Qd7 {[%emt 0:00:45]} 30. Bf1 {[%emt 0:06:46]} Rxe3 {[%emt 0:02:09]} 31. Qxe3 {[%emt 0:00:23]} Nd5 {[%emt 0:00:18]} 32. Qe4 {[%emt 0:04:44]} Re8 {[%emt 0:00:36]} 33. Qg4 {[%emt 0:01:35]} Qc6 {[%emt 0:01:39]} 34. Bd3 {[%emt 0:01:21]} Ne3 {[%emt 0:04:12]} 35. Bxe3 {[%emt 0:00:27]} Rxe3 {[%emt 0:00:06]} 36. Be4 {[%emt 0:00:52]} Qc7 {[%emt 0:04:11]} 37. Kf2 {[%emt 0:01:26]} Rb3 {[%emt 0:00:26]} 38. Rd2 {[%emt 0:01:10]} Qh2+ {[%emt 0:01:50]} 39. Ke1 {[%emt 0:00:06]} Ba5 {[%emt 0:00:46]} 40. Qc8+ {[%emt 0:00:13]} Kh7 {[%emt 0:00:08]} 41. Qc2 {[%emt 0:00:32]} Re3+ {[%emt 0:00:17]} 0-1

[Event "ISR-ch Youth 2019"]
[Site "Jerusalem"]
[Date "2019.04.14"]
[Round "5.3"]
[White "Mizrahi, Ido"]
[Black "Hoffmann, Yair"]
[Result "1/2-1/2"]
[ECO "B10"]
[WhiteElo "1957"]
[BlackElo "2103"]
[Annotator "NA"]
[PlyCount "81"]
[EventDate "2019.04.11"]
[EventType "swiss"]
[EventCountry "ISR"]
[SourceTitle "playchess.com"]
[Source "ChessBase"]
[SourceQuality "1"]
[TimeControl "5400+30"]

1. c4 {[%emt 0:00:00]} c6 {[%emt 0:00:00]} 2. e4 {[%emt 0:00:23]} d5 {[%emt 0:00:00]} 3. exd5 {[%emt 0:00:05]} cxd5 {[%emt 0:00:00]} 4. cxd5 {[%emt 0:00:10]} Nf6 {[%emt 0:00:27]} 5. Bb5+ {[%emt 0:00:13]} Nbd7 {[%emt 0:00:47]} 6. Nf3 {[%emt 0:00:10]} a6 {[%emt 0:02:49]} 7. Ba4 {[%emt 0:00:05]} b5 {[%emt 0:03:44]} 8. Bb3 {[%emt 0:00:13]} Bb7 {[%emt 0:00:55]} 9. O-O {[%emt 0:00:09]} Nxd5 {[%emt 0:05:03]} 10. Nc3 {[%emt 0:00:12]} N7f6 {[%emt 0:01:43]} 11. a4 {[%emt 0:00:32]} b4 {[%emt 0:06:21]} 12. a5 {[%emt 0:01:57]} e6 {[%emt 0:17:22]} 13. Nxd5 {[%emt 0:00:48]} Nxd5 {[%emt 0:00:56]} 14. Ba4+ {[%emt 0:01:34]} Ke7 {[%emt 0:00:02]} 15. d4 {[%emt 0:01:45]} f6 {[%emt 0:04:08]} 16. Re1 {[%emt 0:03:12]} Kf7 $16 {[%emt 0:04:29]} 17. Qe2 {[%emt 0:02:53]} Nc7 {[%emt 0:01:15]} 18. Bf4 {[%emt 0:16:06]} Bd6 {[%emt 0:00:52]} 19. Bxd6 {[%emt 0:07:39]} Qxd6 {[%emt 0:00:40]} 20. Rac1 {[%emt 0:05:58]} Nd5 {[%emt 0:06:39]} 21. Qe4 {[%emt 0:04:18]} Rab8 {[%emt 0:01:47]} 22. Qg4 {[%emt 0:06:38]} h5 {[%emt 0:06:08]} 23. Qg3 {[%emt 0:01:40]} Qxg3 {[%emt 0:00:52]} 24. hxg3 {[%emt 0:00:14]} Rbc8 {[%emt 0:09:09]} 25. Nd2 {[%emt 0:05:19]} Rxc1 {[%emt 0:00:33]} 26. Rxc1 {[%emt 0:00:03]} Rc8 {[%emt 0:00:07]} 27. Rxc8 {[%emt 0:02:03]} Bxc8 {[%emt 0:00:05]} 28. Ne4 {[%emt 0:02:21]} Ke7 {[%emt 0:00:38]} 29. Kf1 {[%emt 0:02:06]} Nc7 {[%emt 0:00:30]} 30. Nc5 {[%emt 0:02:32]} Kd6 {[%emt 0:00:45]} 31. Nd3 {[%emt 0:01:32]} Kd5 {[%emt 0:04:34]} 32. Nxb4+ {[%emt 0:00:56]} Kxd4 {[%emt 0:00:48]} 33. Ke2 {[%emt 0:07:21]} Bb7 {[%emt 0:00:36]} 34. f3 {[%emt 0:01:31]} g5 {[%emt 0:02:11]} 35. Bd7 {[%emt 0:04:01]} Kc5 {[%emt 0:01:38]} 36. Nd3+ {[%emt 0:00:28]} Kc4 {[%emt 0:00:19]} 37. Ba4 {[%emt 0:08:38]} Kd4 {[%emt 0:00:42]} 38. Nb4 {[%emt 0:01:21]} Kc5 {[%emt 0:00:29]} 39. Nd3+ {[%emt 0:00:10]} Kd4 {[%emt 0:00:03]} 40. Nb4 {[%emt 0:00:10]} Kc5 {[%emt 0:00:02]} 41. Nd3+ {[%emt 0:00:06]} 1/2-1/2

[Event "ISR-ch Youth 2019"]
[Site "Jerusalem"]
[Date "2019.04.14"]
[Round "5.4"]
[White "Shocron, Alon"]
[Black "Yaniv, Yuval"]
[Result "1/2-1/2"]
[ECO "D30"]
[WhiteElo "1887"]
[BlackElo "2139"]
[Annotator "NA"]
[PlyCount "201"]
[EventDate "2019.04.11"]
[EventType "swiss"]
[EventCountry "ISR"]
[SourceTitle "playchess.com"]
[Source "ChessBase"]
[SourceQuality "1"]
[TimeControl "5400+30"]

1. Nf3 {[%emt 0:00:00]} Nf6 {[%emt 0:00:00]} 2. c4 {[%emt 0:00:00]} e6 {[%emt 0:00:00]} 3. g3 {[%emt 0:00:00]} d5 {[%emt 0:00:00]} 4. d4 {[%emt 0:00:00]} Bb4+ {[%emt 0:00:06]} 5. Bd2 {[%emt 0:00:02]} Bd6 {[%emt 0:00:08]} 6. Bg2 {[%emt 0:03:28]} c6 {[%emt 0:00:14]} 7. Qc2 {[%emt 0:02:16]} O-O {[%emt 0:00:18]} 8. O-O {[%emt 0:00:12]} Nbd7 {[%emt 0:00:26]} 9. Rd1 {[%emt 0:05:50]} Ne4 {[%emt 0:00:47]} 10. Ne1 {[%emt 0:05:36]} f5 {[%emt 0:05:18]} 11. f3 {[%emt 0:00:35]} Nxd2 {[%emt 0:00:17]} 12. Nxd2 {[%emt 0:00:58]} Qf6 {[%emt 0:00:43]} 13. Nb3 {[%emt 0:01:47]} f4 {[%emt 0:10:28]} 14. g4 {[%emt 0:00:15]} Qh4 {[%emt 0:02:30]} 15. Nd3 {[%emt 0:02:12]} h5 {[%emt 0:01:07]} 16. h3 {[%emt 0:02:05]} hxg4 {[%emt 0:02:42]} 17. fxg4 {[%emt 0:00:36] [#]} Nf6 $11 {[%emt 0:09:01]} ({Resist} 17... Qg3 18. Nd2 $15) ({Much less strong is} 17... f3 18. exf3 Qg3 {[#]} 19. f4 $1 $15 {[%mdl 512]}) (17... dxc4 $1 $17 18. Qxc4 Nb6) 18. Nd2 {[%emt 0:11:47]} Qg3 {[%emt 0:01:27]} 19. Nf2 {[%emt 0:04:07]} Qh4 {[%emt 0:07:53]} 20. Nf3 {[%emt 0:05:23]} Qh7 {[%emt 0:00:20]} 21. Qxh7+ {[%emt 0:02:03]} Kxh7 {[%emt 0:00:12]} 22. c5 {[%emt 0:00:15]} Bc7 {[%emt 0:00:44]} 23. Re1 {[%emt 0:05:06]} b6 {[%emt 0:06:24]} 24. Rac1 {[%emt 0:04:06]} Bd7 {[%emt 0:01:52]} 25. Nd3 {[%emt 0:02:00]} Rfb8 {[%emt 0:05:37]} 26. b3 {[%emt 0:04:32]} Kg8 {[%emt 0:09:15]} 27. Nfe5 {[%emt 0:02:04]} Be8 {[%emt 0:03:36]} 28. Nxf4 {[%emt 0:02:05]} bxc5 {[%emt 0:00:08]} 29. Nxe6 {[%emt 0:02:31]} Ba5 {[%emt 0:00:16]} 30. Rf1 {[%emt 0:02:30]} cxd4 {[%emt 0:01:27]} 31. g5 {[%emt 0:07:33]} Bd2 {[%emt 0:00:09]} 32. Rc2 {[%emt 0:02:04]} Be3+ {[%emt 0:00:02]} 33. Kh1 {[%emt 0:00:19]} Ne4 {[%emt 0:00:52]} 34. Bxe4 {[%emt 0:02:50]} dxe4 {[%emt 0:00:02]} 35. g6 {[%emt 0:02:02]} Bxg6 {[%emt 0:00:42]} 36. Nxg6 {[%emt 0:00:07]} Rb6 {[%emt 0:01:53]} 37. Rxc6 {[%emt 0:01:21]} d3 {[%emt 0:01:13]} 38. exd3 {[%emt 0:02:02]} exd3 {[%emt 0:00:04]} 39. Ne7+ {[%emt 0:00:23]} Kh7 {[%emt 0:00:16]} 40. Nf8+ {[%emt 0:00:15]} Kh8 {[%emt 0:00:03]} 41. Nfg6+ {[%emt 0:00:17]} Kh7 {[%emt 0:00:06]} 42. Ne5 {[%emt 0:00:49]} Re8 {[%emt 0:00:52]} 43. Rxb6 {[%emt 0:00:21]} axb6 {[%emt 0:00:37]} 44. N7c6 {[%emt 0:00:24]} d2 {[%emt 0:00:25]} 45. Kg2 {[%emt 0:02:19]} Rf8 {[%emt 0:00:12]} 46. Nf3 {[%emt 0:00:34]} Rc8 {[%emt 0:00:10]} 47. Nfe5 {[%emt 0:06:22]} Rf8 {[%emt 0:00:20]} 48. Rd1 {[%emt 0:00:22]} Rf2+ {[%emt 0:00:50]} 49. Kg3 {[%emt 0:00:05]} Re2 {[%emt 0:00:09]} 50. Nd3 {[%emt 0:00:25]} Bh6 {[%emt 0:00:12]} 51. Nce5 {[%emt 0:00:33]} Re3+ {[%emt 0:00:17]} 52. Kg2 {[%emt 0:00:56]} Re2+ {[%emt 0:00:01]} 53. Nf2 {[%emt 0:00:55]} Rxe5 {[%emt 0:00:07]} 54. Kf1 {[%emt 0:00:41]} Ra5 {[%emt 0:05:31]} 55. a4 {[%emt 0:00:26]} b5 {[%emt 0:00:21]} 56. Ne4 {[%emt 0:00:30]} bxa4 {[%emt 0:00:08]} 57. bxa4 {[%emt 0:00:15]} Rxa4 {[%emt 0:00:44]} 58. Nxd2 {[%emt 0:00:43]} Rh4 {[%emt 0:00:23]} 59. Nf3 {[%emt 0:00:14]} Rxh3 {[%emt 0:00:14]} 60. Kg2 {[%emt 0:00:03]} Rh5 {[%emt 0:00:07]} 61. Kg3 {[%emt 0:01:05]} Ra5 {[%emt 0:00:16]} 62. Rd3 {[%emt 0:00:49]} Ra4 {[%emt 0:00:17]} 63. Rd4 {[%emt 0:00:42]} Ra5 {[%emt 0:00:25]} 64. Rg4 {[%emt 0:00:11]} Be3 {[%emt 0:01:29]} 65. Rh4+ {[%emt 0:00:30]} Kg8 {[%emt 0:00:08]} 66. Re4 {[%emt 0:00:19]} Bh6 {[%emt 0:00:39]} 67. Rg4 {[%emt 0:00:31]} Kh7 {[%emt 0:00:16]} 68. Rh4 {[%emt 0:00:24]} Kg6 {[%emt 0:00:25]} 69. Rc4 {[%emt 0:00:08]} Ra3 {[%emt 0:00:42]} 70. Kg4 {[%emt 0:00:43]} Kh7 {[%emt 0:00:12]} 71. Rb4 {[%emt 0:00:33]} Ra5 {[%emt 0:00:11]} 72. Rc4 {[%emt 0:00:13]} Ra2 {[%emt 0:01:16]} 73. Nh4 {[%emt 0:00:39]} Ra1 {[%emt 0:00:32]} 74. Nf3 {[%emt 0:00:08]} Ra6 {[%emt 0:00:49]} 75. Nh4 {[%emt 0:00:20]} Ra5 {[%emt 0:01:29]} 76. Nf3 {[%emt 0:00:08]} Rd5 {[%emt 0:00:09]} 77. Ra4 {[%emt 0:00:11]} Rd1 {[%emt 0:01:40]} 78. Re4 {[%emt 0:00:27]} Ra1 {[%emt 0:01:02]} 79. Rb4 {[%emt 0:00:20]} Ra2 {[%emt 0:00:08]} 80. Nh4 {[%emt 0:00:18]} Bd2 {[%emt 0:00:38]} 81. Rc4 {[%emt 0:00:33]} Ba5 {[%emt 0:01:09]} 82. Rd4 {[%emt 0:00:19]} Bc3 {[%emt 0:00:13]} 83. Rc4 {[%emt 0:03:47]} Bf6 {[%emt 0:00:09]} 84. Rb4 {[%emt 0:00:32]} g5 {[%emt 0:01:37]} 85. Nf3 {[%emt 0:01:34]} Kg6 {[%emt 0:00:19]} 86. Rc4 {[%emt 0:00:29]} Rg2+ {[%emt 0:00:41]} 87. Kh3 {[%emt 0:00:07]} Rb2 {[%emt 0:01:47]} 88. Kg4 {[%emt 0:00:04]} Rb1 {[%emt 0:02:43]} 89. Ra4 {[%emt 0:00:09]} Rb5 {[%emt 0:01:03]} 90. Rc4 {[%emt 0:00:17]} Kf7 {[%emt 0:00:15]} 91. Kh5 {[%emt 0:00:49]} Be7 {[%emt 0:01:05]} 92. Rg4 {[%emt 0:01:51]} Rf5 {[%emt 0:02:49]} 93. Nxg5+ {[%emt 0:00:50]} Kg7 {[%emt 0:00:40]} 94. Rg2 {[%emt 0:00:16]} Kf6 {[%emt 0:00:25]} 95. Rg1 {[%emt 0:00:45]} Bc5 {[%emt 0:00:23]} 96. Rg3 {[%emt 0:00:27]} Bd6 {[%emt 0:00:49]} 97. Rf3 {[%emt 0:00:14]} Bf4 {[%emt 0:00:17]} 98. Kg4 {[%emt 0:00:06]} Rxg5+ {[%emt 0:00:10]} 99. Kxf4 {[%emt 0:00:04]} Rf5+ {[%emt 0:00:05]} 100. Ke4 {[%emt 0:00:04]} Rxf3 {[%emt 0:00:02]} 101. Kxf3 {[%emt 0:00:03]} 1/2-1/2

[Event "ISR-ch Youth 2019"]
[Site "Jerusalem"]
[Date "2019.04.14"]
[Round "5.5"]
[White "Cohen, Elad"]
[Black "Neeman, Gal"]
[Result "1-0"]
[ECO "B80"]
[WhiteElo "1828"]
[BlackElo "1715"]
[Annotator "NA"]
[PlyCount "93"]
[EventDate "2019.04.11"]
[EventType "swiss"]
[EventCountry "ISR"]
[SourceTitle "playchess.com"]
[Source "ChessBase"]
[SourceQuality "1"]
[TimeControl "5400+30"]

1. e4 {[%emt 0:00:00]} c5 {[%emt 0:00:00]} 2. Nf3 {[%emt 0:00:00]} e6 {[%emt 0:00:00]} 3. d4 {[%emt 0:00:19]} cxd4 {[%emt 0:00:00]} 4. Nxd4 {[%emt 0:00:09]} a6 {[%emt 0:00:00]} 5. Nc3 {[%emt 0:00:11]} Qc7 {[%emt 0:00:00]} 6. g3 {[%emt 0:00:15]} Nf6 {[%emt 0:00:00]} 7. Bg2 {[%emt 0:00:39]} Nc6 {[%emt 0:00:00]} 8. O-O {[%emt 0:00:27]} Be7 {[%emt 0:00:00]} 9. Re1 {[%emt 0:00:18]} d6 {[%emt 0:00:12]} 10. Nxc6 {[%emt 0:00:18]} bxc6 {[%emt 0:00:37]} 11. e5 {[%emt 0:00:20]} dxe5 {[%emt 0:02:15]} 12. Rxe5 {[%emt 0:01:09]} Qxe5 {[%emt 0:02:34]} 13. Bxc6+ {[%emt 0:00:55]} Bd7 {[%emt 0:00:17]} 14. Bxa8 {[%emt 0:00:19]} O-O {[%emt 0:00:23]} 15. Bb7 {[%emt 0:03:41]} Rd8 {[%emt 0:03:17]} 16. Qe2 {[%emt 0:04:03]} Qxe2 {[%emt 0:09:44]} 17. Nxe2 {[%emt 0:00:10]} Bb5 {[%emt 0:00:17]} 18. Nc3 {[%emt 0:00:37]} Bc4 {[%emt 0:01:14]} 19. b3 {[%emt 0:05:23]} Bb4 {[%emt 0:03:36]} 20. Bb2 {[%emt 0:01:28]} Rd7 {[%emt 0:09:06]} 21. Bg2 {[%emt 0:04:57]} Bxc3 {[%emt 0:03:36]} 22. Bxc3 {[%emt 0:00:14]} Bd5 {[%emt 0:04:26]} 23. Rd1 {[%emt 0:03:33]} Bxg2 {[%emt 0:05:00]} 24. Rxd7 {[%emt 0:00:10]} Nxd7 {[%emt 0:00:11]} 25. Kxg2 {[%emt 0:00:05]} f6 {[%emt 0:00:26]} 26. Kf3 {[%emt 0:02:12]} Kf7 {[%emt 0:00:06]} 27. Ke4 {[%emt 0:00:57]} Ke7 {[%emt 0:01:12]} 28. Bb4+ {[%emt 0:00:36]} Kd8 {[%emt 0:00:34]} 29. Bd6 {[%emt 0:05:28]} Kc8 {[%emt 0:00:50]} 30. c4 {[%emt 0:00:13]} Kb7 {[%emt 0:00:14]} 31. c5 {[%emt 0:00:37]} Kc6 {[%emt 0:00:36]} 32. Kd4 {[%emt 0:01:17]} f5 {[%emt 0:22:20]} 33. b4 {[%emt 0:08:20]} Nf6 {[%emt 0:12:50]} 34. Ke5 {[%emt 0:12:21]} Nd5 {[%emt 0:00:55]} 35. a3 {[%emt 0:00:59]} Kd7 {[%emt 0:01:21]} 36. Kd4 {[%emt 0:02:32]} Kc6 {[%emt 0:08:12]} 37. Kc4 {[%emt 0:01:17]} g5 {[%emt 0:03:23]} 38. a4 {[%emt 0:00:52]} g4 {[%emt 0:01:55]} 39. b5+ {[%emt 0:00:15]} Kb7 {[%emt 0:01:30]} 40. c6+ {[%emt 0:02:05]} Kb6 {[%emt 0:01:40]} 41. Be5 {[%emt 0:01:08]} axb5+ {[%emt 0:01:13]} 42. axb5 {[%emt 0:00:11]} Ne7 {[%emt 0:01:02]} 43. Bd4+ {[%emt 0:00:26]} Kc7 {[%emt 0:00:27]} 44. Kc5 {[%emt 0:00:19]} Ng6 {[%emt 0:02:45]} 45. b6+ {[%emt 0:00:23]} Kc8 {[%emt 0:01:06]} 46. b7+ {[%emt 0:00:21]} Kc7 {[%emt 0:00:12]} 47. Bc3 {[%emt 0:00:53]} 1-0

[Event "ISR-ch Youth 2019"]
[Site "Jerusalem"]
[Date "2019.04.14"]
[Round "5.6"]
[White "Shatil, Shir"]
[Black "Milikow, Elie"]
[Result "0-1"]
[ECO "A58"]
[WhiteElo "1682"]
[BlackElo "2199"]
[Annotator "NA"]
[PlyCount "54"]
[EventDate "2019.04.11"]
[EventType "swiss"]
[EventCountry "ISR"]
[SourceTitle "playchess.com"]
[Source "ChessBase"]
[SourceQuality "1"]
[TimeControl "5400+30"]

1. d4 {[%emt 0:00:00]} Nf6 {[%emt 0:00:00]} 2. c4 {[%emt 0:00:00]} c5 {[%emt 0:00:00]} 3. d5 {[%emt 0:00:00]} b5 {[%emt 0:00:00]} 4. cxb5 {[%emt 0:00:00]} a6 {[%emt 0:00:09]} 5. bxa6 {[%emt 0:00:00]} g6 {[%emt 0:00:08]} 6. Nc3 {[%emt 0:00:00]} Bg7 {[%emt 0:00:09]} 7. a7 {[%emt 0:00:00]} Rxa7 {[%emt 0:00:20]} 8. e4 {[%emt 0:00:05]} O-O {[%emt 0:01:47]} 9. e5 {[%emt 0:02:14]} Ne8 {[%emt 0:00:31]} 10. f4 {[%emt 0:01:14]} d6 {[%emt 0:01:13]} 11. Nf3 {[%emt 0:00:59]} Bg4 {[%emt 0:06:52]} 12. exd6 {[%emt 0:02:33]} exd6 {[%emt 0:01:08]} 13. Be2 {[%emt 0:01:29]} Bxf3 {[%emt 0:04:02]} 14. Bxf3 {[%emt 0:00:09]} Bd4 {[%emt 0:02:00]} 15. Qc2 {[%emt 0:15:30]} Ng7 {[%emt 0:02:34]} 16. Bd2 {[%emt 0:05:58]} Re8+ $17 {[%emt 0:03:49]} 17. Ne2 {[%emt 0:01:59]} Nf5 {[%emt 0:05:01]} 18. Kd1 {[%emt 0:17:07]} Bg7 {[%emt 0:04:56]} 19. g4 {[%emt 0:11:38]} Nh4 {[%emt 0:05:45]} 20. Rf1 {[%emt 0:01:56]} Nxf3 {[%emt 0:00:42]} 21. Rxf3 {[%emt 0:00:10]} Qh4 {[%emt 0:00:39]} 22. h3 {[%emt 0:00:17]} Rae7 {[%emt 0:00:27]} 23. Be1 {[%emt 0:02:23]} Qh6 {[%emt 0:00:57]} 24. g5 {[%emt 0:10:08]} Qh5 {[%emt 0:00:22]} 25. Rf2 {[%emt 0:01:04]} Bd4 {[%emt 0:18:38]} 26. Rh2 {[%emt 0:01:27]} Qf3 {[%emt 0:00:20]} 27. Qc4 {[%emt 0:11:24]} Bg1 {[%emt 0:00:10]} 0-1

[Event "ISR-ch Youth 2019"]
[Site "Jerusalem"]
[Date "2019.04.14"]
[Round "5.7"]
[White "Ostrovsky Berman, Noam"]
[Black "Ribstein, Orel"]
[Result "0-1"]
[ECO "B08"]
[WhiteElo "1545"]
[BlackElo "1708"]
[Annotator "NA"]
[PlyCount "92"]
[EventDate "2019.04.11"]
[EventType "swiss"]
[EventCountry "ISR"]
[SourceTitle "playchess.com"]
[Source "ChessBase"]
[SourceQuality "1"]
[TimeControl "5400+30"]

1. e4 {[%emt 0:00:00]} d6 {[%emt 0:00:00]} 2. d4 {[%emt 0:00:00]} Nf6 {[%emt 0:00:00]} 3. Nc3 {[%emt 0:00:00]} g6 {[%emt 0:00:01]} 4. h3 {[%emt 0:00:00]} Bg7 {[%emt 0:00:20]} 5. Nf3 {[%emt 0:00:00]} O-O {[%emt 0:00:36]} 6. Bg5 {[%emt 0:01:43]} h6 {[%emt 0:01:29]} 7. Be3 {[%emt 0:01:29]} c5 {[%emt 0:02:29]} 8. Bc4 {[%emt 0:06:06]} Nc6 {[%emt 0:04:37]} 9. dxc5 {[%emt 0:04:27]} Qa5 {[%emt 0:00:53]} 10. O-O {[%emt 0:05:33]} dxc5 {[%emt 0:00:42]} 11. Nh4 {[%emt 0:06:01]} Ne5 {[%emt 0:04:32]} 12. Be2 {[%emt 0:00:18]} e6 {[%emt 0:10:03]} 13. f4 {[%emt 0:00:32]} Rd8 {[%emt 0:04:57]} 14. Qc1 {[%emt 0:05:09]} Nc6 {[%emt 0:05:05]} 15. Nf3 {[%emt 0:03:29]} Nd4 {[%emt 0:01:55]} 16. Bd3 {[%emt 0:08:59]} Kh7 {[%emt 0:05:07]} 17. Bxd4 {[%emt 0:05:35]} cxd4 {[%emt 0:00:31]} 18. Ne2 {[%emt 0:00:02]} Qc5 {[%emt 0:08:12]} 19. g4 {[%emt 0:02:37]} Nxe4 {[%emt 0:01:34]} 20. Bxe4 {[%emt 0:04:34]} d3+ {[%emt 0:01:43]} 21. Rf2 {[%emt 0:04:09]} dxe2 {[%emt 0:00:15]} 22. Qe1 {[%emt 0:01:58]} Bxb2 {[%emt 0:16:02]} 23. Rb1 {[%emt 0:00:19]} Bc3 {[%emt 0:15:28]} 24. Qxe2 {[%emt 0:00:11]} Rb8 {[%emt 0:01:13]} 25. Kg2 {[%emt 0:04:14]} b6 {[%emt 0:00:54]} 26. Rb5 {[%emt 0:02:37]} Qc7 {[%emt 0:00:32]} 27. f5 {[%emt 0:02:11]} Ba6 {[%emt 0:01:26]} 28. fxg6+ {[%emt 0:01:01]} fxg6 {[%emt 0:00:01]} 29. Bxg6+ {[%emt 0:00:59]} Kxg6 {[%emt 0:02:51]} 30. Qxe6+ {[%emt 0:00:10]} Kg7 {[%emt 0:00:32]} 31. Ng5 {[%emt 0:04:34]} Rf8 {[%emt 0:04:01]} 32. Rbf5 {[%emt 0:02:56]} Rxf5 {[%emt 0:00:33]} 33. Qxf5 {[%emt 0:00:23]} hxg5 {[%emt 0:00:51]} 34. Qxg5+ {[%emt 0:00:12]} Kh8 {[%emt 0:00:15]} 35. Qh6+ {[%emt 0:01:43]} Kg8 {[%emt 0:00:41]} 36. Qe6+ {[%emt 0:04:25]} Kg7 {[%emt 0:00:27]} 37. g5 {[%emt 0:00:36]} Bb7+ {[%emt 0:00:22]} 38. Kf1 {[%emt 0:00:12]} Ba6+ {[%emt 0:02:09]} 39. Kg2 {[%emt 0:00:15]} Bb7+ {[%emt 0:01:22]} 40. Kf1 {[%emt 0:00:10]} Rh8 {[%emt 0:01:44]} 41. g6 {[%emt 0:04:17]} Rf8 {[%emt 0:01:05]} 42. Rxf8 {[%emt 0:00:14]} Kxf8 {[%emt 0:00:47]} 43. Qf5+ {[%emt 0:00:29]} Kg7 {[%emt 0:00:01]} 44. Qh5 {[%emt 0:01:30]} Qc4+ {[%emt 0:00:21]} 45. Kg1 {[%emt 0:01:35]} Bd4+ {[%emt 0:00:57]} 46. Kh2 {[%emt 0:00:18]} Qc7+ {[%emt 0:00:07]} 0-1

[Event "ISR-ch Youth 2019"]
[Site "Jerusalem"]
[Date "2019.04.15"]
[Round "6.4"]
[White "Mizrahi, Ido"]
[Black "Guz, Ari"]
[Result "1-0"]
[ECO "D36"]
[WhiteElo "1957"]
[BlackElo "2058"]
[Annotator "NA RC"]
[PlyCount "75"]
[EventDate "2019.04.11"]
[EventType "swiss"]
[EventCountry "ISR"]
[SourceTitle "playchess.com"]
[Source "ChessBase"]
[SourceQuality "1"]
[TimeControl "5400+30"]

{[%evp 8,75,18,32767,32767,32767,32767,32767,32767,32767,32767,32767,32767,32767,32767,32767,32767,0,7,3,2,-56,-64,-79,-84,-60,-106,-75,0,-8,14,0,21,0,14,-30,-22,-4,0,-116,0,0,0,0,0,32767,36,39,32767,311,293,32767,32767,366,32767,329,32767,246,250,296,487,477,32767,32767,32767,210,32767,32767,29991,29992]} 1. d4 {[%emt 0:00:00]} Nf6 {[%emt 0:00:00]} 2. c4 {[%emt 0:00:00]} e6 {[%emt 0:00:00]} 3. Nc3 {[%emt 0:00:00]} d5 {[%emt 0:00:02]} 4. cxd5 {[%emt 0:00:00]} exd5 {[%emt 0:00:07]} 5. Bg5 {[%emt 0:00:00]} c6 {[%emt 0:00:18]} 6. e3 {[%emt 0:00:17]} h6 {[%emt 0:00:14]} 7. Bh4 {[%emt 0:00:05]} Be7 {[%emt 0:00:09]} 8. Qc2 {[%emt 0:00:43]} O-O {[%emt 0:00:21]} 9. Bd3 {[%emt 0:00:08]} Re8 {[%emt 0:00:14]} 10. Nf3 {[%emt 0:03:33]} Ne4 {[%emt 0:02:08] D36: Queen's Gambit Declined: Exchange Variation: Main line (5 Bg5 c6 6 Qc2)} 11. Bxe7 {[%emt 0:01:26]} Qxe7 {[%emt 0:00:10]} 12. Ne5 {[%emt 0:09:53]} (12. O-O Nd7 13. b4 Ndf6 14. Rab1 Nxc3 15. Qxc3 Ne4 16. Qc2 Be6 17. Ne5 f6 18. Ng6 Qf7 19. Nf4 g5 20. f3 Nd6 21. Bg6 Qf8 22. Bxe8 gxf4 {½-½ (35) Michiels,B (2502)-Solodovnichenko,Y (2615) Metz 2012}) 12... Nxc3 {[%emt 0:00:22]} 13. bxc3 {[%emt 0:01:24]} Nd7 {[%emt 0:02:37]} 14. f4 $146 {[%emt 0:08:14]} ({White should play Predecessor:} 14. Nf3 $11 Nf6 15. Nd2 Ne4 16. O-O Nxd2 17. Qxd2 f5 18. Qc2 {½-½ (30) Schon,E (1790)-Davidovic,V Brisbane 2005}) 14... Nf8 {[%emt 0:16:10]} 15. O-O {[%emt 0:12:16]} f6 {[%emt 0:00:22]} 16. Ng6 {[%emt 0:02:04]} Qxe3+ {[%emt 0:02:39]} 17. Kh1 {[%emt 0:00:10]} Bd7 {[%emt 0:04:56] [#]} ({Better is} 17... Nxg6 $17 18. Bxg6 Re7) 18. Ne5 $1 {[%emt 0:02:50]} fxe5 {[%emt 0:03:34]} 19. Rae1 {[%emt 0:00:16]} exd4 {[%emt 0:00:14]} 20. Rxe3 {[%emt 0:00:15]} dxe3 {[%emt 0:02:05]} 21. Qe2 {[%emt 0:04:20]} c5 {[%emt 0:06:27]} 22. Qh5 {[%emt 0:07:53]} Bc6 {[%emt 0:02:24]} (22... c4 $5 {[%cal Rc4d3]} 23. Be2 Be6 $11) 23. c4 {[%emt 0:08:01]} (23. f5 $11 {remains equal.} Re5 24. Qg4) 23... Rad8 {[%emt 0:08:58]} (23... Nd7 $17 24. cxd5 Nf6 {[%mdl 64] Double Attack}) 24. f5 $1 {[%emt 0:14:21]} Re5 {[%emt 0:12:21]} 25. Qh4 $1 {[%emt 0:04:05]} Rd7 {[%emt 0:01:32]} 26. Qg3 {[%emt 0:04:46]} Ree7 {[%emt 0:02:08]} 27. f6 {[%emt 0:03:31]} Re6 {[%emt 0:02:21]} 28. fxg7 {[%emt 0:09:30]} Rxg7 {[%emt 0:00:13]} 29. Qf3 {[%emt 0:00:26]} Re8 {[%emt 0:01:48]} 30. cxd5 {[%emt 0:00:42]} Bd7 {[%emt 0:00:10]} 31. Qh5 {[%emt 0:02:41]} b5 {[%emt 0:01:16]} 32. Qxh6 {[%emt 0:01:33]} (32. Rf6 $142 e2 33. Bxe2) 32... c4 {[%emt 0:00:51]} 33. Be2 {[%emt 0:00:04]} Bg4 $2 {[%emt 0:01:54]} (33... Ng6 {keeps fighting.} 34. Rf3 c3) 34. Bxg4 {[%emt 0:00:56]} Rxg4 {[%emt 0:00:06]} 35. Qf6 {[%emt 0:00:33]} Rg7 {[%emt 0:00:41]} 36. d6 {[%emt 0:00:30]} Nd7 {[%emt 0:00:41]} 37. Qf3 {[%emt 0:00:32]} c3 $2 {[%emt 0:01:02]} (37... Re5 $18 38. Kg1 e2) 38. Qd5+ {[%emt 0:00:17] Double Attack} 1-0